bitfinex/quotes_ETHUSD_20241129
["timestamp","ask_amount","ask_price","bid_price","bid_amount"]
[1732847405283,0.7904,3588.4,3587.6,0.278736]
[1732847405493,1.05062332,3588.4,3588.0,2.78703]
[1732847405692,0.7904,3588.4,3588.0,2.78703]
[1732847406494,0.7904,3588.4,3588.2,2.7869]
[1732847406695,0.7904,3588.4,3587.9,2.78708]
[1732847407109,0.7904,3588.4,3588.0,2.787]
[1732847407870,0.26022332,3588.8,3588.2,2.7869]
[1732847408108,0.26022332,3588.8,3588.7,2.78652]
[1732847408291,0.26022332,3588.8,3588.3,0.02786721]
[1732847408292,0.26022332,3589.3,3588.5,3.41712]
[1732847408498,0.7677,3589.7,3589.2,2.78613]
[1732847408747,0.7677,3589.7,3588.5,0.6305]
[1732847408866,0.7677,3589.7,3589.3,2.78605]
[1732847409071,0.26022332,3589.9,3589.7,2.78573]
[1732847409302,0.7677,3590.1,3589.2,0.6305]
[1732847409669,0.7677,3590.1,3588.8,3.33978135]
[1732847409896,0.7604,3589.3,3588.5,2.78666]
[1732847410096,0.7604,3589.3,3588.0,0.56879995]
[1732847410097,2.78621,3589.1,3588.0,3.35578995]
[1732847410298,2.78621,3589.1,3588.3,2.7868]
[1732847410485,0.354643,3589.2,3588.3,2.7868]
[1732847410807,0.7604,3588.9,3588.1,2.78699]
[1732847411315,1.02026224,3588.9,3588.1,2.78699]
[1732847411518,2.78666,3588.6,3587.7,2.78727]
[1732847411819,2.78666,3588.6,3587.9,0.55490773]
[1732847412176,0.8005,3588.7,3587.9,3.34202773]
[1732847412482,1.06052373,3588.7,3587.5,0.6305]
[1732847412696,1.06052373,3588.7,3587.7,2.7873]
[1732847413023,0.8005,3588.7,3588.2,2.78684]
[1732847415613,0.8005,3588.7,3587.5,3.97374041]
[1732847415614,2.78675,3588.5,3587.5,3.97374041]
[1732847415831,0.7774,3587.8,3587.0,2.78782]
[1732847416118,2.78738,3587.6,3586.8,2.78796]
[1732847416281,3.56468,3587.8,3587.0,2.78777]
[1732847416619,3.56468,3587.8,3586.8,2.78799]
[1732847416620,2.78744,3587.6,3586.8,2.78799]
[1732847416784,2.78732,3587.7,3586.8,2.78799]
[1732847417116,0.2604493,3587.6,3586.9,2.81576588]
[1732847417309,3.8250893,3587.8,3587.1,2.78774]
[1732847417607,0.2604493,3587.7,3587.1,2.78774]
[1732847417974,0.26046225,3587.7,3587.1,2.78774]
[1732847418212,3.56464,3587.8,3586.9,3.06946659]
[1732847418380,0.26046264,3587.7,3586.9,3.09734246]
[1732847418580,0.26046264,3587.7,3587.1,2.78771]
[1732847418776,1.03786264,3587.8,3587.1,2.78771]
[1732847418981,1.03786264,3587.8,3587.5,2.78743]
[1732847419182,0.7774,3587.8,3587.3,2.78758]
[1732847420103,0.7774,3587.8,3587.4,2.78751]
[1732847420708,2.78682,3588.4,3587.5,0.909251]
[1732847420891,3.58431,3588.6,3587.8,2.78722]
[1732847421105,0.26043592,3588.3,3587.9,2.81497821]
[1732847421308,0.26043592,3588.5,3587.9,2.81497821]
[1732847421513,0.7977,3588.6,3587.9,2.81497821]
[1732847421514,1.05813592,3588.6,3587.9,2.81497821]
[1732847422824,1.05813592,3588.6,3588.0,2.78704]
[1732847423324,0.7977,3588.6,3588.0,2.78704]
[1732847424417,2.78629,3589.0,3588.1,2.78699]
[1732847424618,0.26041536,3588.9,3588.2,2.78691]
[1732847424928,3.04679536,3588.9,3588.2,2.78691]
[1732847425140,2.78638,3588.9,3588.2,2.78691]
[1732847425934,0.8301,3589.0,3588.3,2.78683]
[1732847426107,1.09050102,3589.0,3588.0,3.34727982]
[1732847426289,2.78639,3588.9,3588.0,3.34727982]
[1732847426489,2.8005176,3588.9,3588.1,2.78697]
[1732847426832,0.8301,3589.0,3588.0,0.56021982]
[1732847427033,0.8301,3589.0,3588.2,2.78685]
[1732847427330,1.09049666,3589.0,3588.3,0.02786522]
[1732847427547,0.8301,3589.0,3588.3,0.02786522]
[1732847428237,0.8301,3589.0,3588.5,2.78667]
[1732847428838,0.26037375,3589.1,3587.7,2.54493492]
[1732847429128,0.26037375,3589.5,3588.6,2.78654]
[1732847429435,2.78591,3589.5,3588.6,2.78659]
[1732847429731,0.26037375,3589.4,3588.7,2.78649]
[1732847429937,0.26037375,3589.4,3588.8,2.78643]
[1732847430234,0.26037375,3589.4,3588.7,2.78649]
[1732847430438,2.78591,3589.5,3588.7,2.78649]
[1732847430607,2.78607,3589.3,3588.5,2.78664]
[1732847430795,2.78607,3589.3,3588.4,2.78669]
[1732847430796,0.0141276,3589.3,3588.6,2.78659]
[1732847430997,2.8002376,3589.3,3588.4,2.78669]
[1732847431522,2.8002376,3589.3,3588.5,2.78665]
[1732847432094,2.78614,3589.2,3588.5,2.78665]
[1732847432332,2.78614,3589.2,3588.2,2.78691]
[1732847432333,2.8003476,3589.1,3588.3,2.7868]
[1732847432537,0.807,3589.0,3588.3,2.7868]
[1732847432830,3.59329,3589.0,3588.3,2.7868]
[1732847433504,2.8005276,3588.9,3588.1,2.78697]
[1732847433908,2.7864,3588.9,3588.2,2.78689]
[1732847434729,0.807,3589.0,3588.2,2.78685]
[1732847434932,0.807,3589.0,3588.0,2.78706]
[1732847434933,3.59331,3589.0,3588.0,2.78706]
[1732847435134,2.78637,3588.9,3588.3,2.7868]
[1732847435297,2.78655,3588.7,3588.0,2.78706]
[1732847435736,2.78637,3588.9,3588.0,2.78706]
[1732847435899,2.78656,3588.7,3588.0,2.78706]
[1732847436733,2.78663,3588.6,3587.9,2.78711]
[1732847437231,0.797,3588.5,3587.9,2.78711]
[1732847437437,0.797,3588.5,3587.9,3.4634768]
[1732847437639,2.78644,3588.8,3587.9,0.6763668]
[1732847437810,0.797,3589.0,3587.7,0.6305]
[1732847437811,2.78658,3588.7,3588.0,2.787]
[1732847438540,2.78645,3588.8,3588.1,2.78698]
[1732847441304,2.78652,3588.7,3588.1,2.78698]
[1732847441646,2.78662,3588.6,3587.9,2.78714]
[1732847441851,0.797,3589.0,3587.9,2.78714]
[1732847442151,2.78646,3588.8,3588.1,2.78692]
[1732847442317,0.797,3589.0,3588.1,2.78692]
[1732847442519,0.797,3589.0,3588.4,2.78673]
[1732847443221,1.05749174,3589.0,3588.4,2.78673]
[1732847443635,1.05749174,3589.0,3588.2,2.78687]
[1732847443835,1.05749174,3589.0,3588.3,2.78682]
[1732847444144,1.0574879,3589.0,3588.3,2.78682]
[1732847444346,1.0574879,3589.0,3588.4,2.78668]
[1732847444525,0.797,3589.0,3588.4,2.78668]
[1732847444726,1.0574879,3589.0,3588.2,2.814776]
[1732847444931,1.0574879,3589.0,3588.2,2.78691]
[1732847447139,2.78681,3588.4,3587.5,3.066201]
[1732847447449,3.6173,3588.6,3587.5,3.066201]
[1732847447659,2.78698,3588.2,3587.5,0.278751]
[1732847447811,0.7842276,3588.1,3587.4,0.56386509]
[1732847448136,2.78706,3588.0,3587.1,2.7877]
[1732847448337,0.26092941,3587.9,3587.1,2.7877]
[1732847448539,2.78706,3588.0,3587.1,3.43744035]
[1732847448713,0.26092301,3587.9,3587.1,3.43744035]
[1732847448913,2.7872,3587.9,3587.1,0.64974035]
[1732847449140,2.7873,3587.7,3587.1,0.64974035]
[1732847449462,0.7565,3587.6,3586.9,2.8157358]
[1732847449949,0.7565,3587.6,3587.0,0.5717362]
[1732847450854,0.7565,3587.6,3587.0,3.3595062]
[1732847451154,0.7565,3587.6,3587.1,2.78772]
[1732847451366,0.7533,3588.0,3587.2,2.78768]
[1732847451557,0.7533,3588.0,3587.3,0.33594162]
[1732847451717,0.26113856,3587.9,3587.5,2.78738]
[1732847451915,0.7533,3588.0,3587.5,2.78738]
[1732847452946,0.26101382,3588.2,3587.5,2.78738]
[1732847453858,0.0141276,3588.1,3587.3,0.33594162]
[1732847454155,0.0141276,3588.1,3587.3,3.12355162]
[1732847454718,0.7993,3588.0,3587.0,3.3595062]
[1732847454919,2.78721,3587.9,3587.0,3.3595062]
[1732847455220,2.78726,3587.8,3587.0,3.3595062]
[1732847455418,3.5864,3588.0,3587.1,2.7877]
[1732847456032,3.5864,3588.0,3587.1,3.32835473]
[1732847456227,3.58638,3588.0,3587.2,2.78766]
[1732847458767,2.78716,3587.9,3587.1,0.54065473]
[1732847458931,2.78722,3587.8,3587.1,0.54065473]
[1732847459119,2.78722,3587.8,3587.1,2.78774]
[1732847460137,2.78722,3587.8,3586.9,3.34250928]
[1732847460359,2.78714,3587.9,3587.1,2.78772]
[1732847460577,0.26083653,3587.8,3586.9,3.34248928]
[1732847460869,0.8166,3587.5,3586.4,0.6305]
[1732847461032,2.78777,3587.1,3586.1,0.92182071]
[1732847461223,0.8213,3586.9,3586.3,0.56263372]
[1732847461535,0.8213,3586.9,3586.4,0.02788067]
[1732847461721,0.26083653,3587.3,3587.0,0.6305]
[1732847461925,1.08194945,3587.6,3587.1,0.341839]
[1732847462163,0.26064945,3587.6,3587.3,2.78761]
[1732847462334,0.7759,3588.0,3587.3,2.78755]
[1732847462522,1.03649838,3588.0,3587.3,2.78755]
[1732847462937,3.82358838,3588.0,3587.1,3.129599]
[1732847463222,2.78731,3587.7,3586.7,0.6305]
[1732847463525,2.78752,3587.5,3586.7,0.6305]
[1732847464265,0.7759,3587.6,3586.7,0.65837758]
[1732847464477,2.78748,3587.5,3586.7,3.41852]
[1732847464658,2.78748,3587.5,3586.7,3.44639758]
[1732847464961,2.78748,3587.5,3586.7,4.06986034]
[1732847465179,2.78748,3587.5,3586.7,4.04198276]
[1732847465497,0.7759,3587.6,3586.6,2.78815]
[1732847465661,2.78762,3587.3,3586.5,2.78823]
[1732847465839,2.78762,3587.3,3586.3,0.84324211]
[1732847465840,2.78783,3587.1,3586.3,0.84324211]
[1732847466043,3.58119,3587.2,3586.3,0.84324211]
[1732847466267,8.38163022,3588.1,3586.3,0.2913371]
[1732847466268,0.7935,3586.6,3586.3,0.2913371]
[1732847466870,3.58167,3586.6,3586.3,0.2913371]
[1732847467484,2.78824,3586.5,3586.3,0.2913371]
[1732847467787,2.78831,3586.4,3586.3,0.2913371]
[1732847467960,2.78842,3586.3,3585.6,0.56095627]
[1732847468684,2.78842,3586.3,3585.5,2.789]
[1732847468892,2.78842,3586.3,3585.5,3.409859]
[1732847469345,2.78824,3586.5,3585.7,2.78882]
[1732847469762,2.78831,3586.4,3585.5,3.409859]
[1732847470051,2.78831,3586.4,3585.6,2.78892]
[1732847470253,0.7935,3586.6,3585.8,2.78877]
[1732847470447,0.7935,3586.6,3585.9,0.30954952]
[1732847470694,0.7935,3586.6,3585.8,2.78877]
[1732847470847,3.58166,3586.6,3585.9,2.78868]
[1732847471052,3.58166,3586.6,3585.6,2.8168139]
[1732847471053,2.7883,3586.5,3585.6,2.78893]
[1732847471254,2.7883,3586.5,3585.6,5.5778]
[1732847471474,2.7883,3586.5,3585.6,2.78887]
[1732847471691,2.7883,3586.5,3585.7,3.19201496]
[1732847471968,2.78831,3586.4,3585.4,0.6305]
[1732847472283,2.78849,3586.2,3585.4,3.41958]
[1732847474692,0.7838,3586.0,3585.4,3.41958]
[1732847475384,0.7838,3586.0,3585.4,0.6305]
[1732847475562,3.57249,3586.0,3585.2,2.78917]
[1732847475760,0.7838,3586.0,3585.1,1.17747877]
[1732847475961,0.7838,3586.0,3585.1,0.6305]
[1732847476189,0.7838,3586.0,3585.2,0.02788851]
[1732847476359,0.7838,3586.0,3585.3,2.78909]
[1732847477066,0.8011,3586.4,3585.4,0.0278885]
[1732847477286,0.8011,3586.4,3585.7,2.78884]
[1732847477287,6.58941,3586.4,3585.7,2.78884]
[1732847477453,3.58941,3586.4,3585.8,0.6305]
[1732847477649,0.8011,3586.4,3585.8,0.6305]
[1732847477879,3.0,3587.1,3585.8,3.41926]
[1732847478082,0.7625,3586.9,3585.8,3.41926]
[1732847478291,1.02259254,3586.9,3585.8,3.41926]
[1732847478588,1.02259254,3586.9,3585.2,0.34476885]
[1732847478589,2.78861,3586.1,3585.2,3.13394885]
[1732847478757,2.78861,3586.1,3585.3,2.78914]
[1732847479193,2.78861,3586.1,3585.4,2.78906]
[1732847480895,3.55089,3586.3,3585.4,2.78906]
[1732847481103,0.7625,3586.3,3585.5,2.81689789]
[1732847481394,2.78836,3586.4,3585.6,0.02788548]
[1732847481692,3.60886,3586.2,3585.2,2.78917]
[1732847481854,2.78869,3586.0,3585.2,2.78917]
[1732847482057,3.60886,3586.2,3585.2,2.78917]
[1732847482266,0.358926,3586.3,3585.0,0.55842068]
[1732847482267,0.8204,3586.0,3585.0,0.55842068]
[1732847482469,0.8204,3585.5,3585.0,0.55842068]
[1732847483173,3.60942,3585.5,3584.8,2.78953]
[1732847483458,3.60942,3585.5,3584.9,0.54668724]
[1732847483663,2.7891,3585.4,3584.6,6.2099]
[1732847484099,2.7891,3585.4,3584.6,3.4202]
[1732847484299,2.78917,3585.3,3584.6,3.4202]
[1732847484956,2.78917,3585.3,3584.6,2.7897]
[1732847485160,2.78924,3585.2,3584.4,5.57972]
[1732847485502,2.78924,3585.2,3584.8,0.56644223]
[1732847486503,2.78912,3585.4,3584.8,0.56644223]
[1732847487060,0.8204,3585.5,3584.8,0.56644223]
[1732847487383,0.8204,3585.5,3585.0,2.78932]
[1732847487899,2.7891,3585.4,3584.6,2.78963]
[1732847488058,2.7891,3585.4,3584.6,0.96304304]
[1732847488261,0.8204,3585.5,3584.7,2.78957]
[1732847488464,0.8204,3585.5,3584.9,2.78941]
[1732847488873,0.8204,3585.5,3584.7,2.78957]
[1732847489073,3.60942,3585.5,3584.8,2.78954]
[1732847489278,0.8204,3585.5,3584.9,2.78947]
[1732847489603,0.8204,3585.5,3584.7,2.78957]
[1732847489760,0.7691,3585.8,3585.2,2.78916]
[1732847489965,0.7691,3586.4,3585.6,3.41943]
[1732847490198,2.78778,3587.1,3585.7,0.02788494]
[1732847490411,3.55681,3587.2,3586.5,2.7882]
[1732847490591,3.55681,3587.2,3586.4,2.7883]
[1732847490774,3.04799531,3587.1,3586.2,2.7884]
[1732847490964,2.78784,3587.0,3586.2,2.78839]
[1732847491164,2.78784,3587.0,3586.3,2.78836]
[1732847491394,3.55682,3587.2,3586.3,2.78836]
[1732847491586,0.26023882,3587.1,3586.3,2.78836]
[1732847491896,2.78776,3587.1,3586.4,2.78828]
[1732847492403,0.7691,3587.2,3586.7,2.78807]
[1732847492576,2.78747,3587.5,3586.5,0.278828]
[1732847492577,0.26036725,3587.4,3586.5,0.909328]
[1732847492775,1.17608632,3587.5,3586.5,0.909328]
[1732847492776,0.7595,3587.5,3586.8,2.78793]
[1732847492997,3.80735725,3587.5,3586.7,2.78807]
[1732847493304,0.27449485,3587.4,3586.5,3.697528]
[1732847493465,0.27449485,3587.4,3586.6,0.90307629]
[1732847493466,0.0141276,3587.4,3586.6,0.90307629]
[1732847493661,2.78761,3587.3,3586.6,0.90307629]
[1732847494204,0.7595,3587.5,3586.7,0.02787918]
[1732847494369,3.54702,3587.5,3586.7,2.78803]
[1732847494798,3.54702,3587.5,3586.8,2.78796]
[1732847495880,0.26050327,3587.4,3586.8,2.78796]
[1732847496974,3.54702,3587.5,3586.8,2.78796]
[1732847497415,0.26053048,3587.4,3586.9,2.78789]
[1732847497624,0.26053048,3587.4,3587.3,2.78761]
[1732847497804,0.26053048,3587.8,3587.3,3.066371]
[1732847498115,1.01513048,3588.2,3587.3,3.09424403]
[1732847498622,3.54153,3588.2,3587.4,2.78751]
[1732847498925,2.78708,3588.0,3587.3,3.066351]
[1732847499216,3.26053048,3588.1,3587.3,0.278761]
[1732847499217,2.8012676,3587.9,3587.3,0.278761]
[1732847499575,0.0141276,3587.9,3587.3,0.278761]
[1732847499779,0.0141276,3587.9,3587.3,3.066341]
[1732847499982,0.0141276,3588.0,3587.3,3.066341]
[1732847500926,2.8011976,3588.0,3587.3,3.066341]
[1732847501819,0.7731,3587.8,3586.5,1.45786944]
[1732847502001,3.56057,3587.5,3586.7,2.78805]
[1732847502314,3.56057,3587.5,3586.8,2.78799]
[1732847502724,0.0141276,3587.4,3586.8,2.78799]
[1732847502926,3.37159736,3587.4,3586.5,0.54854144]
[1732847503088,0.8291276,3587.3,3586.5,0.54854144]
[1732847503641,0.815,3587.3,3586.5,0.54854144]
[1732847504130,3.815,3587.3,3586.5,0.54854144]
[1732847504431,3.60263,3587.3,3586.5,3.33670144]
[1732847504632,3.60263,3587.3,3586.6,2.78812]
[1732847505107,3.60263,3587.3,3586.5,1.47859408]
[1732847505285,2.78769,3587.2,3586.5,1.47859408]
[1732847505490,0.815,3587.3,3586.5,1.47859408]
[1732847505729,3.815,3587.3,3586.6,2.78814]
[1732847506022,0.815,3587.3,3586.8,2.78796]
[1732847506208,0.7848,3587.6,3586.8,2.78796]
[1732847506395,3.57224,3587.6,3586.8,2.78796]
[1732847507197,2.8015876,3587.5,3586.8,2.78796]
[1732847508026,2.8015876,3587.5,3586.7,2.78804]
[1732847508327,2.78746,3587.5,3586.8,2.78799]
[1732847508850,0.7848,3587.6,3586.8,2.78799]
[1732847509293,0.7848,3587.6,3587.1,2.7877]
[1732847509730,0.7848,3587.6,3586.9,2.78792]
[1732847509933,0.7848,3587.6,3586.9,5.57584]
[1732847510167,0.7848,3587.6,3587.0,0.62567236]
[1732847510449,0.7848,3587.6,3587.0,3.41349236]
[1732847513829,0.7848,3587.6,3587.1,2.78774]
[1732847514012,0.7848,3587.6,3587.0,0.62567236]
[1732847514013,0.7848,3587.6,3587.2,2.78768]
[1732847514214,0.7564,3587.9,3587.5,2.78742]
[1732847514450,0.7564,3587.9,3587.7,2.78728]
[1732847514649,0.7564,3587.9,3587.6,2.78732]
[1732847514965,0.7564,3587.9,3587.7,2.78727]
[1732847516113,0.7832,3588.3,3587.7,2.78727]
[1732847516352,0.7832,3588.3,3587.8,2.78722]
[1732847516846,0.7973276,3588.3,3587.6,2.78735]
[1732847517361,2.78692,3588.2,3587.6,2.78735]
[1732847517651,0.0141276,3588.1,3587.6,2.78735]
[1732847517873,0.27406782,3588.1,3587.6,2.78735]
[1732847518071,0.27406782,3588.1,3587.4,3.35682074]
[1732847518351,2.78738,3587.6,3586.9,2.78788]
[1732847518858,3.61474,3587.8,3587.1,2.78774]
[1732847519061,0.26046775,3587.7,3587.1,2.78774]
[1732847519432,0.26046775,3587.6,3587.1,3.35756298]
[1732847519631,0.26046775,3587.5,3587.2,2.78761]
[1732847519939,0.26046775,3587.7,3587.1,0.56982298]
[1732847520152,3.04777775,3587.7,3587.1,0.56982298]
[1732847520357,0.8112,3587.5,3586.6,2.78811]
[1732847520567,2.78767,3587.3,3586.3,2.78838]
[1732847520860,0.26046775,3587.2,3586.6,2.78813]
[1732847521431,0.26046775,3587.3,3586.6,2.78813]
[1732847521641,0.26046775,3587.2,3586.7,2.78807]
[1732847521957,0.26046775,3587.1,3586.7,2.78807]
[1732847522131,0.7989,3586.9,3586.4,2.78828]
[1732847522750,1.05936775,3586.9,3586.2,3.38483749]
[1732847522933,0.26046775,3586.8,3586.2,3.38486749]
[1732847523135,0.7989,3586.9,3586.4,2.78829]
[1732847523855,1.05936775,3586.9,3586.4,2.78829]
[1732847524057,0.7989,3586.9,3586.2,3.38486749]
[1732847524257,0.7989,3586.9,3586.5,2.78822]
[1732847524622,0.7989,3586.9,3586.3,3.34553496]
[1732847524949,0.26046775,3587.3,3587.0,2.78778]
[1732847525171,0.7589,3587.5,3587.2,2.78768]
[1732847525360,0.7589,3587.5,3587.2,0.557546]
[1732847525535,0.7589,3587.5,3587.0,2.78778]
[1732847525732,0.7589,3587.5,3587.1,2.78775]
[1732847526065,0.26046775,3587.7,3587.6,2.78737]
[1732847526271,0.7589,3588.4,3587.9,2.78711]
[1732847526272,0.2608684,3588.3,3587.9,2.78711]
[1732847526437,0.2608684,3588.2,3587.9,2.78711]
[1732847526751,0.2608684,3588.3,3587.9,2.78711]
[1732847527470,0.7589,3588.4,3587.9,3.34734486]
[1732847527633,0.7589,3588.4,3587.9,6.13445486]
[1732847527834,1.0197684,3588.4,3587.9,6.13445486]
[1732847528168,0.7589,3588.4,3587.9,3.34734486]
[1732847528341,0.7589,3588.4,3587.9,2.78711]
[1732847528538,0.2608684,3588.5,3588.3,2.78676]
[1732847528854,1.74420697,3589.8,3588.3,2.78676]
[1732847528855,3.58534,3589.1,3588.3,5.57359]
[1732847529062,0.2608684,3589.0,3588.4,2.78675]
[1732847529852,0.2608684,3589.0,3588.5,2.78667]
[1732847530050,0.7991,3589.1,3588.5,2.78667]
[1732847530252,2.78616,3589.2,3588.4,0.6305]
[1732847530571,3.58323,3589.4,3588.4,1.02885262]
[1732847530572,0.26048717,3589.1,3588.4,1.02885262]
[1732847530962,3.0,3589.3,3588.4,1.02885262]
[1732847531165,0.26048717,3589.2,3588.4,1.02885262]
[1732847531341,0.7972,3589.4,3588.7,2.78647]
[1732847531941,1.05739469,3589.4,3588.7,2.78647]
[1732847532242,1.05739469,3589.4,3588.6,2.7866]
[1732847532475,0.26019469,3589.6,3588.9,2.78629]
[1732847532679,3.53949,3589.8,3589.0,2.78626]
[1732847532867,3.53949,3589.8,3588.7,2.54493492]
[1732847532868,3.04577752,3589.7,3588.9,2.78634]
[1732847533044,2.7998676,3589.7,3588.9,2.78634]
[1732847533345,2.78583,3589.6,3588.9,2.78634]
[1732847534387,3.7538,3589.8,3588.9,3.343629]
[1732847534544,0.7538,3589.8,3588.9,3.343629]
[1732847535045,0.7538,3589.8,3589.2,2.78611]
[1732847535279,0.7538,3589.8,3589.0,2.78627]
[1732847535883,0.7538,3589.8,3589.1,2.7862]
[1732847537144,3.53947,3589.8,3588.9,3.343599]
[1732847537382,3.5535976,3589.8,3588.9,3.343599]
[1732847537891,3.5535976,3589.8,3588.9,2.78631]
[1732847538243,0.7679276,3589.8,3588.6,2.78653]
[1732847538480,3.7679276,3589.8,3588.8,2.78644]
[1732847539078,2.78585,3589.6,3588.8,2.78644]
[1732847539278,2.78585,3589.6,3588.6,2.78653]
[1732847539589,3.7538,3589.8,3588.9,2.78634]
[1732847539794,3.7538,3589.8,3589.1,2.78619]
[1732847541300,3.53948,3589.8,3589.1,2.78619]
[1732847541516,0.7538,3589.8,3588.4,1.59550338]
[1732847541699,0.8288,3589.1,3588.5,2.7866]
[1732847542020,0.8288,3589.1,3588.4,0.56665076]
[1732847542166,3.5736,3589.8,3588.4,0.59451273]
[1732847542506,3.5736,3589.8,3589.1,2.78619]
[1732847542999,0.7879,3589.8,3589.2,2.81397936]
[1732847543309,3.7879,3589.8,3589.0,2.78626]
[1732847543608,2.78574,3589.7,3589.0,2.81411936]
[1732847543767,3.7879,3589.8,3589.0,2.81411936]
[1732847543768,3.57358,3589.8,3589.0,0.02785936]
[1732847544110,0.7879,3589.8,3589.2,2.78611]
[1732847544281,0.7879,3589.8,3589.2,3.06748694]
[1732847544809,0.7879,3589.8,3589.2,3.09534497]
[1732847544985,0.7879,3589.8,3589.2,3.06748694]
[1732847545187,0.7879,3589.8,3589.2,0.28139694]
[1732847545369,0.7577,3589.6,3588.7,2.78645]
[1732847545718,2.78605,3589.4,3588.6,2.78659]
[1732847545912,2.78607,3589.3,3588.6,2.78659]
[1732847546067,0.8241,3589.1,3588.5,0.31394477]
[1732847546266,0.8241,3589.1,3588.6,2.78659]
[1732847546604,0.8241,3589.1,3588.6,0.89989505]
[1732847547184,0.8241,3589.1,3588.6,3.68648505]
[1732847547580,0.8241,3589.1,3588.6,0.89989505]
[1732847547791,2.78637,3588.9,3588.1,2.78696]
[1732847548087,2.78647,3588.8,3587.9,5.33207492]
[1732847548419,2.78647,3588.8,3588.0,2.78704]
[1732847548726,2.78653,3588.7,3587.9,2.54493492]
[1732847548884,2.78629,3589.0,3588.0,2.78704]
[1732847549214,2.7865,3588.8,3587.9,2.78708]
[1732847549878,2.78668,3588.5,3587.7,2.78729]
[1732847550080,0.825,3588.4,3587.2,3.41818]
[1732847550279,2.78705,3588.1,3587.3,2.78759]
[1732847550524,0.8006,3587.9,3586.9,0.6305]
[1732847550709,0.8006,3587.4,3586.5,2.78819]
[1732847550910,0.8006,3587.4,3586.6,3.35388725]
[1732847551082,0.8006,3587.4,3586.9,2.78791]
[1732847551282,0.8006,3587.4,3586.7,2.78807]
[1732847551527,0.8006,3587.4,3586.8,0.33538073]
[1732847551707,0.8006,3587.4,3586.6,0.56573725]
[1732847552387,0.8006,3587.4,3586.8,2.78797]
[1732847554005,0.8006,3587.4,3586.9,2.78791]
[1732847554539,0.8006,3587.4,3586.7,2.78806]
[1732847557485,0.8147276,3587.4,3586.7,2.78806]
[1732847557679,0.8006,3587.4,3586.7,2.78806]
[1732847557911,0.8006,3587.4,3586.6,0.56573725]
[1732847558099,0.8006,3587.4,3586.8,2.78799]
[1732847558697,0.8006,3587.4,3586.8,2.78793]
[1732847559519,2.78755,3587.4,3586.7,0.86868922]
[1732847559823,0.832,3587.2,3586.7,0.86868922]
[1732847560023,2.78777,3587.1,3586.2,3.67483257]
[1732847560220,2.78777,3587.1,3586.4,2.78829]
[1732847560386,0.832,3587.2,3586.5,2.78821]
[1732847560582,3.61969,3587.2,3586.5,1.20067988]
[1732847561924,3.61969,3587.2,3586.5,3.98888988]
[1732847562294,0.832,3587.2,3586.5,0.55158865]
[1732847562513,2.78785,3587.0,3586.5,0.55158865]
[1732847562691,3.61972,3587.2,3586.5,0.55158865]
[1732847564335,3.61972,3587.2,3586.4,2.7883]
[1732847564647,3.61972,3587.2,3586.4,3.37497951]
[1732847566239,3.61972,3587.2,3586.5,2.78819]
[1732847566636,2.78776,3587.1,3586.4,0.58667951]
[1732847566801,2.78785,3587.0,3586.4,0.58667951]
[1732847567235,0.832,3587.2,3586.4,0.58667951]
[1732847567534,3.61972,3587.2,3586.4,2.78829]
[1732847568601,3.61972,3587.2,3586.2,3.07848508]
[1732847568822,3.61972,3587.2,3586.5,2.78822]
[1732847570246,3.61972,3587.2,3586.5,2.78817]
[1732847570407,3.61972,3587.2,3586.6,2.78814]
[1732847570613,3.61972,3587.2,3587.1,0.55382691]
[1732847575052,0.832,3587.2,3587.1,0.55382691]
[1732847576117,3.61968,3587.2,3587.1,0.55382691]
[1732847577339,3.880078,3587.2,3587.1,0.55382691]
[1732847577539,2.7879,3587.0,3586.4,0.29025599]
[1732847578240,2.7879,3587.0,3586.4,3.07855599]
[1732847578438,2.7879,3587.0,3586.4,0.29025599]
[1732847578652,2.78781,3587.1,3586.4,0.29025599]
[1732847578848,0.832,3587.2,3586.4,0.29025599]
[1732847579060,2.78776,3587.1,3586.4,3.07851599]
[1732847579261,0.26061932,3587.0,3586.4,3.07851599]
[1732847579463,0.26061932,3587.0,3586.4,3.54961271]
[1732847579971,2.78776,3587.1,3586.4,3.54961271]
[1732847580283,0.26090409,3587.0,3586.4,3.54961271]
[1732847580477,0.26090409,3586.9,3586.4,0.76135271]
[1732847580769,0.26090409,3586.8,3586.4,0.76135271]
[1732847580974,2.78793,3586.9,3586.4,0.76135271]
[1732847581174,0.26120381,3586.8,3586.4,0.76135271]
[1732847581374,2.78793,3586.9,3586.4,0.76135271]
[1732847581533,0.26125686,3586.8,3586.4,0.29025599]
[1732847581736,2.78823,3586.5,3586.4,0.29025599]
[1732847581955,2.78884,3585.8,3585.1,0.6305]
[1732847582156,3.55194,3585.8,3585.1,3.41976]
[1732847582365,0.0141276,3585.7,3585.2,0.30154788]
[1732847582565,0.0141276,3585.7,3584.8,0.6305]
[1732847582839,2.78908,3585.5,3584.8,0.6305]
[1732847583064,0.0141276,3585.4,3584.8,0.6305]
[1732847583255,0.0141276,3585.4,3585.0,0.54990162]
[1732847583456,2.78932,3585.1,3585.0,0.54990162]
[1732847583655,2.78932,3585.1,3584.2,3.42049]
[1732847583877,2.78945,3585.0,3584.3,0.342049]
[1732847584268,2.78932,3585.1,3584.3,0.342049]
[1732847584269,2.78932,3585.1,3584.5,0.56848654]
[1732847584465,3.60546,3585.3,3584.5,0.56848654]
[1732847584782,2.78955,3584.8,3584.5,0.56848654]
[1732847585384,2.78955,3584.8,3583.2,2.79075]
[1732847585385,2.78982,3584.5,3583.8,2.79033]
[1732847585550,0.8219276,3584.4,3583.6,3.42097]
[1732847585881,0.8078,3584.4,3583.6,0.6305]
[1732847586090,2.78995,3584.3,3583.6,3.42091]
[1732847586383,2.78995,3584.3,3583.1,2.54493492]
[1732847586384,0.8078,3584.4,3583.7,0.54964627]
[1732847586575,0.0141276,3584.2,3583.1,2.79085]